[Event "TOP 12F 2021"]
[Site "RENNES, France"]
[Date "2021.08.27"]
[Round "2.13"]
[White "Paehtz, Elisabeth"]
[Black "Auvray, Juliette"]
[Result "1-0"]
[TimeControl "1H30 + 30 sec/coup"]
[WhiteElo "2466"]
[BlackElo "2004"]

1. e4 {[%clk 01:30:41]} {[%emt 00:00:18]} c5 {[%clk 01:30:51]} {[%emt
00:00:10]} 2. Nf3 {[%clk 01:31:03]} {[%emt 00:00:09]} d6 {[%clk 01:31:06]}
{[%emt 00:00:15]} 3. d4 {[%clk 01:31:28]} {[%emt 00:00:05]} cxd4 {[%clk
01:31:30]} {[%emt 00:00:06]} 4. Nxd4 {[%clk 01:31:54]} {[%emt 00:00:04]} Nf6
{[%clk 01:31:45]} {[%emt 00:00:15]} 5. f3 {[%clk 01:32:21]} {[%emt 00:00:03]}
g6 {[%clk 01:24:37]} {[%emt 00:07:39]} 6. c4 {[%clk 01:32:45]} {[%emt
00:00:06]} Bg7 {[%clk 01:22:03]} {[%emt 00:03:04]} 7. Nc3 {[%clk 01:33:09]}
{[%emt 00:00:06]} Nc6 {[%clk 01:18:09]} {[%emt 00:04:24]} 8. Nc2 {[%clk
01:33:32]} {[%emt 00:00:07]} Be6 {[%clk 01:13:37]} {[%emt 00:05:03]} 9. Be3
{[%clk 01:30:32]} {[%emt 00:03:30]} Rc8 {[%clk 01:08:46]} {[%emt 00:05:20]} 10.
Qd2 {[%clk 01:20:59]} {[%emt 00:10:03]} h5 {[%clk 01:03:33]} {[%emt 00:05:44]}
11. Be2 {[%clk 01:19:09]} {[%emt 00:02:19]} Nd7 {[%clk 00:50:43]} {[%emt
00:13:21]} 12. Rb1 {[%clk 01:06:58]} {[%emt 00:12:41]} Nde5 {[%clk 00:43:21]}
{[%emt 00:07:52]} 13. b3 {[%clk 01:01:45]} {[%emt 00:05:42]} Qa5 {[%clk
00:37:29]} {[%emt 00:06:22]} 14. Nd4 {[%clk 00:54:12]} {[%emt 00:08:02]} Nxd4
{[%clk 00:35:37]} {[%emt 00:02:22]} 15. Bxd4 {[%clk 00:54:36]} {[%emt
00:00:07]} f6 {[%clk 00:32:04]} {[%emt 00:04:03]} 16. Rc1 {[%clk 00:47:00]}
{[%emt 00:08:05]} a6 {[%clk 00:22:33]} {[%emt 00:10:02]} 17. O-O {[%clk
00:45:18]} {[%emt 00:02:11]} Bf7 {[%clk 00:14:11]} {[%emt 00:08:53]} 18. f4
{[%clk 00:36:38]} {[%emt 00:09:10]} Bh6 {[%clk 00:11:13]} {[%emt 00:03:28]} 19.
h3 {[%clk 00:30:41]} {[%emt 00:06:27]} Nd7 {[%clk 00:09:28]} {[%emt 00:02:15]}
20. Be3 {[%clk 00:30:12]} {[%emt 00:00:58]} Rg8 {[%clk 00:06:51]} {[%emt
00:03:07]} 21. h4 {[%clk 00:26:48]} {[%emt 00:03:54]} g5 {[%clk 00:05:04]}
{[%emt 00:02:17]} 22. fxg5 {[%clk 00:27:00]} {[%emt 00:00:17]} fxg5 {[%clk
00:04:59]} {[%emt 00:00:35]} 23. Rf5 {[%clk 00:21:42]} {[%emt 00:05:48]} Ne5
{[%clk 00:03:06]} {[%emt 00:02:23]} 24. hxg5 {[%clk 00:22:07]} {[%emt
00:00:05]} Bg7 {[%clk 00:02:23]} {[%emt 00:01:13]} 25. Bd4 {[%clk 00:20:12]}
{[%emt 00:02:24]} Bg6 {[%clk 00:02:06]} {[%emt 00:00:48]} 26. Rf2 {[%clk
00:18:35]} {[%emt 00:02:07]} Nf7 {[%clk 00:01:41]} {[%emt 00:00:55]} 27. Be3
{[%clk 00:16:31]} {[%emt 00:02:33]} Qe5 {[%clk 00:01:03]} {[%emt 00:01:09]} 28.
Bf3 {[%clk 00:11:11]} {[%emt 00:05:49]} h4 {[%clk 00:01:08]} {[%emt 00:00:26]}
29. Bg4 {[%clk 00:10:35]} {[%emt 00:01:06]} Rc6 {[%clk 00:00:50]} {[%emt
00:00:48]} 30. Bf5 {[%clk 00:10:42]} {[%emt 00:00:22]} Bh8 {[%clk 00:00:50]}
{[%emt 00:00:31]} 31. Nd5 {[%clk 00:08:50]} {[%emt 00:02:21]} e6 {[%clk
00:00:44]} {[%emt 00:00:37]} 32. Bf4 {[%clk 00:09:03]} {[%emt 00:00:17]} Qd4
{[%clk 00:00:47]} {[%emt 00:00:28]} 33. Bxe6 {[%clk 00:09:25]} {[%emt
00:00:08]} Qxd2 {[%clk 00:00:48]} {[%emt 00:00:28]} 34. Rxd2 {[%clk 00:08:08]}
{[%emt 00:01:46]} Rf8 {[%clk 00:00:35]} {[%emt 00:00:44]} 35. Bf5 {[%clk
00:06:53]} {[%emt 00:01:45]} Bh5 {[%clk 00:00:42]} {[%emt 00:00:24]} 36. Nf6+
{[%clk 00:05:21]} {[%emt 00:02:01]} Bxf6 {[%clk 00:01:06]} {[%emt 00:00:07]} 37.
gxf6 {[%clk 00:05:49]} {[%emt 00:00:02]} Rg8 {[%clk 00:01:07]} {[%emt
00:00:29]} 38. e5 {[%clk 00:03:48]} {[%emt 00:02:31]} Nxe5 {[%clk 00:00:45]}
{[%emt 00:00:52]} 39. Bxe5 {[%clk 00:04:12]} {[%emt 00:00:06]} Rg5 {[%clk
00:00:53]} {[%emt 00:00:22]} 40. Be4 {[%clk 00:04:10]} {[%emt 00:00:31]} dxe5
{[%clk 00:00:49]} {[%emt 00:00:34]} 41. Bxc6+ {[%clk 00:04:35]} {[%emt
00:00:05]} bxc6 {[%clk 00:01:15]} {[%emt 00:00:04]} 42. Rf1 {[%clk 00:03:02]}
{[%emt 00:02:02]} e4 {[%clk 00:00:37]} {[%emt 00:01:09]} 43. Rf4 {[%clk
00:03:14]} {[%emt 00:00:17]} Bf3 {[%clk 00:00:34]} {[%emt 00:00:34]} 44. f7+
{[%clk 00:03:36]} {[%emt 00:00:07]} 1-0

[Event "TOP 12F 2021"]
[Site "RENNES, France"]
[Date "2021.08.27"]
[Round "2.14"]
[White "Coriat, Caroline"]
[Black "Skripechenko, Almira"]
[Result "0-1"]
[TimeControl "1H30 + 30 sec/coup"]
[WhiteElo "1784"]
[BlackElo "2411"]

1. c4 {[%clk 01:30:58]} {[%emt 00:00:01]} e5 {[%clk 01:26:57]} {[%emt
00:04:02]} 2. Nc3 {[%clk 01:31:14]} {[%emt 00:00:15]} Nc6 {[%clk 01:27:12]}
{[%emt 00:00:15]} 3. g3 {[%clk 01:30:33]} {[%emt 00:01:11]} f5 {[%clk
01:26:52]} {[%emt 00:00:49]} 4. d3 {[%clk 01:30:11]} {[%emt 00:00:53]} Bb4
{[%clk 01:26:31]} {[%emt 00:00:50]} 5. Bd2 {[%clk 01:29:23]} {[%emt 00:01:19]}
Nf6 {[%clk 01:26:41]} {[%emt 00:00:20]} 6. Bg2 {[%clk 01:28:57]} {[%emt
00:00:57]} Bxc3 {[%clk 01:21:41]} {[%emt 00:05:30]} 7. Bxc3 {[%clk 01:28:50]}
{[%emt 00:00:37]} d6 {[%clk 01:22:06]} {[%emt 00:00:05]} 8. Nf3 {[%clk
01:28:03]} {[%emt 00:01:17]} O-O {[%clk 01:21:57]} {[%emt 00:00:38]} 9. O-O
{[%clk 01:26:34]} {[%emt 00:01:59]} Qe8 {[%clk 01:19:51]} {[%emt 00:02:36]} 10.
b4 {[%clk 01:23:27]} {[%emt 00:03:38]} Qh5 {[%clk 01:17:37]} {[%emt 00:02:44]}
11. Qd2 {[%clk 01:09:21]} {[%emt 00:14:36]} Nd8 {[%clk 01:10:21]} {[%emt
00:07:46]} 12. Qg5 {[%clk 01:01:45]} {[%emt 00:08:06]} Qe8 {[%clk 01:09:25]}
{[%emt 00:01:26]} 13. c5 {[%clk 00:57:28]} {[%emt 00:04:47]} Nf7 {[%clk
01:05:10]} {[%emt 00:04:45]} 14. Qd2 {[%clk 00:51:58]} {[%emt 00:06:00]} h6
{[%clk 01:02:31]} {[%emt 00:03:09]} 15. Qb2 {[%clk 00:46:00]} {[%emt 00:06:29]}
Ng5 {[%clk 00:52:53]} {[%emt 00:10:07]} 16. Nd2 {[%clk 00:38:44]} {[%emt
00:07:46]} f4 {[%clk 00:52:03]} {[%emt 00:01:20]} 17. cxd6 {[%clk 00:35:33]}
{[%emt 00:03:42]} cxd6 {[%clk 00:52:18]} {[%emt 00:00:14]} 18. Nc4 {[%clk
00:32:57]} {[%emt 00:03:07]} Qh5 {[%clk 00:50:54]} {[%emt 00:01:53]} 19. Nxd6
{[%clk 00:28:37]} {[%emt 00:04:51]} Nh3+ {[%clk 00:41:39]} {[%emt 00:09:44]} 20.
Kh1 {[%clk 00:28:29]} {[%emt 00:00:39]} Ng4 {[%clk 00:41:29]} {[%emt 00:00:39]}
21. Bd5+ {[%clk 00:20:51]} {[%emt 00:08:08]} Kh8 {[%clk 00:39:47]} {[%emt
00:02:12]} 22. e3 {[%clk 00:15:28]} {[%emt 00:05:54]} fxg3 {[%clk 00:25:05]}
{[%emt 00:15:12]} 23. Bxe5 {[%clk 00:07:12]} {[%emt 00:08:46]} Nhxf2+ {[%clk
00:24:15]} {[%emt 00:01:19]} 24. Rxf2 {[%clk 00:07:12]} {[%emt 00:00:31]} Nxf2+
{[%clk 00:24:37]} {[%emt 00:00:07]} 25. Kg1 {[%clk 00:06:57]} {[%emt 00:00:44]}
Qxh2+ {[%clk 00:24:36]} {[%emt 00:00:31]} 26. Kf1 {[%clk 00:07:21]} {[%emt
00:00:08]} Nxd3+ {[%clk 00:24:29]} {[%emt 00:00:36]} 0-1

[Event "TOP 12F 2021"]
[Site "RENNES, France"]
[Date "2021.08.27"]
[Round "2.15"]
[White "Boutant, Jade"]
[Black "Leconte, Maria"]
[Result "0-1"]
[TimeControl "1H30 + 30 sec/coup"]
[WhiteElo "1747"]
[BlackElo "2232"]

1. c4 {[%clk 01:30:57]} {[%emt 00:00:02]} e5 {[%clk 01:30:53]} {[%emt
00:00:07]} 2. Nc3 {[%clk 01:31:19]} {[%emt 00:00:08]} Nf6 {[%clk 01:30:49]}
{[%emt 00:00:35]} 3. g3 {[%clk 01:31:11]} {[%emt 00:00:37]} Bb4 {[%clk
01:23:14]} {[%emt 00:08:05]} 4. Nd5 {[%clk 01:28:17]} {[%emt 00:03:23]} Nxd5
{[%clk 01:13:48]} {[%emt 00:09:58]} 5. cxd5 {[%clk 01:28:22]} {[%emt 00:00:24]}
a5 {[%clk 01:09:13]} {[%emt 00:05:06]} 6. Bg2 {[%clk 01:18:35]} {[%emt
00:10:15]} O-O {[%clk 01:08:58]} {[%emt 00:00:46]} 7. Nf3 {[%clk 01:07:30]}
{[%emt 00:11:34]} d6 {[%clk 00:55:22]} {[%emt 00:14:07]} 8. O-O {[%clk
01:07:29]} {[%emt 00:00:32]} Bg4 {[%clk 00:43:21]} {[%emt 00:12:30]} 9. h3
{[%clk 01:05:10]} Bh5 {[%clk 00:42:59]} {[%emt 00:03:42]} 10. d3 {[%clk
01:02:05]} c6 {[%clk 00:40:18]} {[%emt 00:06:45]} 11. dxc6 {[%clk 01:01:21]}
Nxc6 {[%clk 00:40:10]} {[%emt 00:01:52]} 12. a3 {[%clk 00:58:28]} d5 {[%clk
00:39:09]} {[%emt 00:04:54]} 13. Be3 {[%emt 00:03:05]} Be7 {[%clk 00:38:11]} 14.
Rc1 {[%clk 00:34:33]} {[%emt 00:23:18]} d4 {[%clk 00:35:39]} {[%emt 00:03:02]}
15. Bd2 {[%clk 00:34:38]} {[%emt 00:00:24]} Qb6 {[%clk 00:23:34]} {[%emt
00:12:35]} 16. b4 {[%clk 00:14:10]} {[%emt 00:20:59]} axb4 {[%clk 00:23:00]}
{[%emt 00:01:04]} 17. axb4 {[%clk 00:14:33]} {[%emt 00:00:06]} Qb5 {[%clk
00:18:03]} {[%emt 00:05:28]} 18. Qb3 {[%clk 00:12:28]} {[%emt 00:02:34]} e4
{[%clk 00:14:11]} {[%emt 00:04:23]} 19. dxe4 {[%clk 00:11:48]} {[%emt
00:01:10]} Qxe2 {[%clk 00:14:30]} {[%emt 00:00:10]} 20. Rfe1 {[%clk 00:09:00]}
{[%emt 00:03:18]} Qb5 {[%clk 00:14:40]} {[%emt 00:00:20]} 21. g4 {[%clk
00:06:25]} {[%emt 00:03:05]} Bg6 {[%clk 00:14:58]} {[%emt 00:00:13]} 22. Bf1
{[%clk 00:06:29]} {[%emt 00:00:25]} Qb6 {[%clk 00:14:38]} {[%emt 00:00:50]} 23.
b5 {[%clk 00:05:46]} {[%emt 00:01:13]} Ra3 {[%clk 00:10:07]} {[%emt 00:05:02]}
24. Qd1 {[%clk 00:04:43]} {[%emt 00:01:32]} Nd8 {[%clk 00:10:01]} {[%emt
00:00:37]} 25. Ne5 {[%clk 00:04:01]} {[%emt 00:01:11]} Bh4 {[%clk 00:06:26]}
{[%emt 00:04:04]} 26. Nd7 {[%clk 00:02:27]} Qd6 {[%clk 00:06:24]} {[%emt
00:02:36]} 27. Nxf8 {[%clk 00:00:32]} Bxf2+ {[%clk 00:06:24]} 28. Kh1 {[%clk
00:00:32]} Rxh3+ {[%clk 00:06:24]} 29. Bxh3 {[%clk 00:00:32]} Qg3 {[%clk
00:06:24]} 0-1

[Event "TOP 12F 2021"]
[Site "RENNES, France"]
[Date "2021.08.27"]
[Round "2.16"]
[White "Dornbusch, Tatiana"]
[Black "Parot de Sousa, Sophie"]
[Result "1-0"]
[TimeControl "1H30 + 30 sec/coup"]
[WhiteElo "2249"]
[BlackElo "1447"]

1. d4 {[%clk 01:28:50]} {[%emt 00:02:09]} d5 {[%clk 01:30:56]} {[%emt
00:00:04]} 2. c4 {[%clk 01:29:05]} {[%emt 00:00:16]} c6 {[%clk 01:31:16]}
{[%emt 00:00:10]} 3. Nf3 {[%clk 01:29:01]} {[%emt 00:00:34]} Nf6 {[%clk
01:31:23]} {[%emt 00:00:23]} 4. e3 {[%clk 01:25:41]} {[%emt 00:03:50]} Nbd7
{[%clk 01:27:29]} {[%emt 00:04:25]} 5. Nc3 {[%clk 01:25:33]} {[%emt 00:00:37]}
e6 {[%clk 01:27:40]} {[%emt 00:00:19]} 6. Qc2 {[%clk 01:24:19]} {[%emt
00:01:44]} Be7 {[%clk 01:22:02]} {[%emt 00:06:09]} 7. Bd3 {[%clk 01:22:29]}
{[%emt 00:02:20]} dxc4 {[%clk 01:20:12]} {[%emt 00:02:20]} 8. Bxc4 {[%clk
01:22:48]} {[%emt 00:00:11]} b5 {[%clk 01:17:23]} {[%emt 00:03:19]} 9. Bd3
{[%clk 01:21:35]} {[%emt 00:01:43]} Bb7 {[%clk 01:15:35]} {[%emt 00:02:18]} 10.
e4 {[%clk 01:12:43]} {[%emt 00:09:21]} a6 {[%clk 00:57:49]} {[%emt 00:18:16]}
11. e5 {[%clk 01:03:32]} {[%emt 00:09:41]} Nd5 {[%clk 00:49:59]} {[%emt
00:08:21]} 12. Nxd5 {[%clk 01:00:45]} {[%emt 00:03:17]} cxd5 {[%clk 00:50:08]}
{[%emt 00:00:21]} 13. h4 {[%clk 00:58:29]} {[%emt 00:02:46]} Rc8 {[%clk
00:39:12]} {[%emt 00:11:26]} 14. Qe2 {[%clk 00:58:30]} {[%emt 00:00:28]} Qa5+
{[%clk 00:35:31]} {[%emt 00:04:11]} 15. Bd2 {[%clk 00:45:11]} {[%emt 00:13:50]}
Bb4 {[%clk 00:33:08]} {[%emt 00:02:53]} 16. O-O {[%clk 00:44:47]} {[%emt
00:00:54]} Bxd2 {[%clk 00:30:13]} {[%emt 00:03:25]} 17. Nxd2 {[%clk 00:45:08]}
{[%emt 00:00:09]} O-O {[%clk 00:19:36]} {[%emt 00:11:07]} 18. Qh5 {[%clk
00:38:16]} {[%emt 00:07:22]} h6 {[%clk 00:09:45]} {[%emt 00:10:22]} 19. Nf3
{[%clk 00:37:58]} {[%emt 00:00:48]} f5 {[%clk 00:04:37]} {[%emt 00:05:38]} 20.
exf6 {[%clk 00:37:20]} {[%emt 00:01:08]} Nxf6 {[%clk 00:02:33]} {[%emt
00:02:33]} 21. Qg6 {[%clk 00:37:24]} {[%emt 00:00:26]} Qb6 {[%clk 00:01:40]}
{[%emt 00:01:23]} 22. Rad1 {[%clk 00:36:05]} {[%emt 00:01:49]} Ne4 {[%clk
00:01:35]} {[%emt 00:00:36]} 23. Bb1 {[%clk 00:19:35]} {[%emt 00:16:59]} Rf6
{[%clk 00:01:20]} {[%emt 00:00:46]} 24. Qh5 {[%clk 00:16:12]} {[%emt 00:03:53]}
Qd6 {[%clk 00:00:55]} {[%emt 00:00:55]} 25. Qe5 {[%clk 00:15:26]} {[%emt
00:01:16]} Qe7 {[%clk 00:00:35]} {[%emt 00:00:50]} 26. Nd2 {[%clk 00:13:22]}
{[%emt 00:02:34]} Rf5 {[%clk 00:00:33]} {[%emt 00:00:33]} 27. Qh2 {[%clk
00:13:33]} {[%emt 00:00:19]} Rcf8 {[%clk 00:00:43]} {[%emt 00:00:20]} 28. Nxe4
{[%clk 00:08:01]} {[%emt 00:06:01]} dxe4 {[%clk 00:00:58]} {[%emt 00:00:15]} 29.
f3 {[%clk 00:06:07]} {[%emt 00:02:25]} Rf4 {[%clk 00:00:48]} {[%emt 00:00:40]}
30. fxe4 {[%clk 00:03:52]} {[%emt 00:02:44]} Qxh4 {[%clk 00:00:38]} {[%emt
00:00:40]} 31. Qxh4 {[%clk 00:03:13]} {[%emt 00:01:09]} Rxh4 {[%clk 00:01:06]}
{[%emt 00:00:03]} 32. Rxf8+ {[%clk 00:03:11]} {[%emt 00:00:32]} Kxf8 {[%clk
00:01:29]} {[%emt 00:00:06]} 33. Re1 {[%clk 00:03:05]} {[%emt 00:00:36]} Ke7
{[%clk 00:01:42]} {[%emt 00:00:18]} 34. g3 {[%clk 00:03:02]} {[%emt 00:00:33]}
Rg4 {[%clk 00:01:51]} {[%emt 00:00:21]} 35. Kf2 {[%clk 00:03:28]} {[%emt
00:00:04]} Rg5 {[%clk 00:01:43]} {[%emt 00:00:39]} 36. Rc1 {[%clk 00:03:40]}
{[%emt 00:00:17]} Kd6 {[%clk 00:01:55]} {[%emt 00:00:17]} 37. a3 {[%clk
00:03:43]} {[%emt 00:00:27]} Rh5 {[%clk 00:01:45]} {[%emt 00:00:41]} 38. Kg2
{[%clk 00:03:33]} {[%emt 00:00:40]} g5 {[%emt 00:00:38]} 39. Rf1 {[%clk
00:02:44]} {[%emt 00:01:16]} Ke7 {[%clk 00:01:50]} {[%emt 00:00:20]} 40. Bd3
{[%clk 00:02:23]} {[%emt 00:00:51]} g4 {[%clk 00:02:04]} {[%emt 00:00:16]} 41.
Rf4 {[%clk 00:02:44]} {[%emt 00:00:09]} Rg5 {[%clk 00:02:24]} {[%emt 00:00:10]}
42. Kf2 {[%clk 00:03:04]} {[%emt 00:00:10]} h5 {[%clk 00:02:42]} {[%emt
00:00:12]} 43. Ke3 {[%clk 00:03:10]} {[%emt 00:00:24]} Ba8 {[%clk 00:02:35]}
{[%emt 00:00:37]} 44. Rf2 {[%clk 00:03:22]} {[%emt 00:00:17]} Rg8 {[%clk
00:02:09]} {[%emt 00:00:56]} 45. Rh2 {[%clk 00:03:37]} {[%emt 00:00:16]} Rf8
{[%clk 00:01:36]} {[%emt 00:01:03]} 46. Be2 {[%clk 00:03:58]} {[%emt 00:00:09]}
Rc8 {[%clk 00:00:38]} {[%emt 00:01:28]} 47. Rxh5 {[%clk 00:03:11]} {[%emt
00:01:17]} Rc2 {[%clk 00:00:54]} {[%emt 00:00:14]} 48. Rh7+ {[%clk 00:03:19]}
{[%emt 00:00:22]} Kd6 {[%clk 00:01:13]} {[%emt 00:00:11]} 49. e5+ {[%clk
00:03:29]} {[%emt 00:00:20]} Kd5 {[%emt 00:01:20]} 50. Ke4+ {[%emt 00:00:24]}
Rc3+ {[%emt 00:00:10]} 1-0